Cogmind - Beta 10.2 *** ADVENTURER MODE // 2021.01.12 @ 16:36:34 Player: Alex Result: Destroyed by S-27 Virus with Autogun Performance ------------- Evolutions (3) 1500 Regions Visited (5) 1000 Robots Destroyed (56) 280 Value Destroyed (1778) 1778 Prototype IDs (5) 100 Alien Tech Used (0) 0 Bonus (0) 0 TOTAL SCORE: 4658 Bonus ------- None Cogmind --------- Core Integrity 0/700 Matter 212/300 Energy 100/100 System Corruption 0% Temperature Cool (0) Movement Core (50) Location -7/Lower Caves Parts ------- > --- POWER (2) -------- (None) > --- PROPULSION (3) --- (None) > --- UTILITY (5) ------ Advanced Visual Processing Unit Advanced Signal Interpreter > --- WEAPON (3) ------- (None) > --- INVENTORY (4) ---- (None) Peak State ------------ > --- POWER ------------ Improved Ion Engine Light Deuterium Engine > --- PROPULSION ------- Compact Wheel Compact Wheel > --- UTILITY ---------- Improved Heat Sink Large Storage Unit Advanced Visual Processing Unit Advanced Signal Interpreter Improved ECM Suite > --- WEAPON ----------- Advanced Beam Rifle Minigun Heavy Rocket Launcher > --- INVENTORY -------- Pulse Rifle Rocket Launcher [Rating: 31] Favorites ----------- Power Light Deuterium Engine Engine Light Deuterium Engine Power Core Light Nuclear Core Propulsion Compact Wheel Treads Light Treads Wheel Compact Wheel Utility Large Storage Unit Device Sensor Array Storage Large Storage Unit Processor Advanced Signal Interpreter Weapon Light Assault Rifle Energy Gun Medium Laser Ballistic Gun Light Assault Rifle Launcher Rocket Launcher Build | -11 -10 -9 -8 -7 -7 ------- Run | Scr Mat Mat Mat Fac Low Slots Evolved 6 | . . 2 2 2 . Power 1 | . . . 1 . . Propulsion 1 | . . . . 1 . Utility 3 | . . 2 . 1 . Weapon 1 | . . . 1 . . Parts Attached 52 | 6 1 14 17 2 12 Power 7 | 1 . 2 2 . 2 Engine 6 | 1 . 2 1 . 2 Core 1 | . . . 1 . . Reactor . | . . . . . . Propulsion 7 | 2 . 4 . 1 . Treads 4 | 2 . 2 . . . Leg . | . . . . . . Wheel 3 | . . 2 . 1 . Hover . | . . . . . . Flight . | . . . . . . Utility 19 | 1 1 5 7 1 4 Device 11 | . 1 2 5 1 2 Storage 2 | 1 . 1 . . . Processor 6 | . . 2 2 . 2 Hackware . | . . . . . . Protection . | . . . . . . Artifact . | . . . . . . Weapon 19 | 2 . 3 8 . 6 Energy Gun 7 | 1 . 1 3 . 2 Energy Cannon . | . . . . . . Ballistic Gun 6 | 1 . 2 3 . . Ballistic Cannon . | . . . . . . Launcher 6 | . . . 2 . 4 Special Weapon . | . . . . . . Impact Weapon . | . . . . . . Slashing Weapon . | . . . . . . Piercing Weapon . | . . . . . . Special Melee Weapon . | . . . . . . Unidentified Prototypes 1 | . . . 1 . . Parts Lost 27 | . . 9 1 . 17 Power 5 | . . 1 . . 4 Propulsion 5 | . . 2 . . 3 Utility 5 | . . 2 . . 3 Weapon 12 | . . 4 1 . 7 Highest Loss Streak 7 | . . 5 1 . 7 Average Slot Usage (%) 80 | . 96 93 97 100 51 Engine 9 | . 14 11 15 7 3 Core 1 | . . . 1 7 1 Treads 9 | . 28 21 . . . Wheel 7 | . . . 18 23 6 Device 9 | . 10 10 9 15 7 Storage 9 | . 14 11 9 7 5 Processor 15 | . . 20 18 15 15 Energy Gun 6 | . 14 7 9 7 2 Ballistic Gun 9 | . 14 11 11 15 4 Launcher 1 | . . . 3 . 2 Naked Turns . | . . . . . . Heaviest Build 43 | 12 13 28 40 38 43 Greatest Support 48 | 40 40 43 32 48 48 Greatest Overweight (x) 7 | . . 7 1 . 5 Average Overweight (x) . | . . . . . 1 Largest Inventory Capacity 10 | 6 6 10 10 10 10 Average Capacity 8 | 5 6 8 10 10 9 Most Carried 8 | 4 6 6 8 7 6 Average Carried 3 | 2 4 4 4 6 1 Final Capacity 10 | 6 6 10 10 10 4 Final Carried 8 | 4 6 1 8 6 . Class Distribution -------------------- 47% | Mutant 38% | Skirmisher 12% | Scavenger-Skirmisher Dominant Class ---------------- Mutant | -10/Materials Scavenger-Skirmisher | -9/Materials Skirmisher | -8/Materials Skirmisher | -7/Factory Mutant | -7/Lower Caves Resources | -11 -10 -9 -8 -7 -7 ----------- Run | Scr Mat Mat Mat Fac Low Matter Collected 1052 | 187 96 155 319 . 295 Remotely . | . . . . . . Salvage Created 1772 | . 81 500 738 . 453 Parts 101 | . 9 35 39 . 18 Haulers Intercepted . | . . . . . . Recyclers Shooed . | . . . . . . Parts Field Recycled . | . . . . . . Retrieved Matter . | . . . . . . Parts Self-Destructed 13 | . . . . . 13 Prevented . | . . . . . . Kills | -11 -10 -9 -8 -7 -7 ------- Run | Scr Mat Mat Mat Fac Low Combat Hostiles Destroyed 51 | . 3 14 18 . 16 Guns 33 | . 3 12 14 . 4 AOE 18 | . . 2 4 . 12 Classes Destroyed 7 | . 2 2 3 . . Recycler 1 | . . . 1 . . Watcher 4 | . 2 . 2 . . Swarmer 20 | . 3 4 8 . 5 Grunt 21 | . . 8 5 . 8 Duelist 1 | . . . 1 . . Sentry 8 | . . 2 3 . 3 Hunter 1 | . . . 1 . . Best Kill Streak 10 | . 3 5 4 . 10 Combat Bots Only 10 | . 3 5 4 . 10 Max Kills in Single Turn 4 | . 1 2 4 . 3 Gunslinging 1 | . . . 1 . . Exploded 4 | . . 2 4 . 3 Melee . | . . . . . . Uniques/NPCs Destroyed . | . . . . . . Combat | -11 -10 -9 -8 -7 -7 -------- Run | Scr Mat Mat Mat Fac Low Damage Taken 3054 | . 157 900 421 . 1576 Core 977 | . 32 197 48 . 700 Absorbed by Shields . | . . . . . . Core Remaining (%) 82 | 100 87 50 91 . . Volleys Fired 130 | . 13 56 33 . 28 Largest 3 | . 2 2 3 . 3 Hottest 147 | . 70 76 147 . 125 Shots Fired 253 | . 25 83 95 . 50 Gun 233 | . 25 83 94 . 31 Cannon . | . . . . . . Launcher 20 | . . . 1 . 19 Special . | . . . . . . Kinetic 149 | . 13 73 39 . 24 Thermal 67 | . 12 10 38 . 7 Explosive 20 | . . . 1 . 19 Electromagnetic 17 | . . . 17 . . Robot Hit Streak 22 | . 11 22 20 . 17 Robot Miss Streak 3 | . 1 2 3 . 1 Penetration Max . | . . . . . . Secondary Targets 6 | . 1 1 4 . . Max Gunslinging Chain 1 | . 1 1 1 . . Shots Hit Robots 207 | . 21 72 75 . 39 Core Hits 116 | . 6 35 34 . 41 Critical Hits 1 | . . 1 . . . Critical Kills . | . . . . . . Critical Parts Destroyed 1 | . . 1 . . . Melee Attacks . | . . . . . . Impact . | . . . . . . Slashing . | . . . . . . Piercing . | . . . . . . Sneak Attacks . | . . . . . . Combat Hostiles . | . . . . . . Follow-up Attacks . | . . . . . . Damage Inflicted 4527 | . 198 709 1423 . 2197 Guns 2440 | . 198 626 1216 . 400 Cannons . | . . . . . . Explosions 2087 | . . 83 207 . 1797 Melee . | . . . . . . Ramming . | . . . . . . Kinetic 1350 | . 98 515 469 . 268 Thermal 874 | . 100 111 531 . 132 Explosive 2004 | . . . 207 . 1797 Electromagnetic 299 | . . 83 216 . . Impact . | . . . . . . Slashing . | . . . . . . Piercing . | . . . . . . Highest Corruption 1 | . . 1 . . . Average Corruption 1 | . . 1 . . . Corruption Purged . | . . . . . . Effects 1 | . . 1 . . . Message Errors 1 | . . 1 . . . Overload Shots . | . . . . . . Overflow Damage 78 | . . . 9 . 69 Projectiles . | . . . . . . Explosions 78 | . . . 9 . 69 Melee . | . . . . . . Knockbacks . | . . . . . . Impact . | . . . . . . Kinetic . | . . . . . . Secondary . | . . . . . . Self-Inflicted Damage 60 | . . 26 . . 34 Shots 3 | . . 1 . . 2 Rammed . | . . . . . . Targets Rammed . | . . . . . . Kicked . | . . . . . . Crushed . | . . . . . . Highest Temperature 370 | . 140 108 370 . 80 Average Temperature 87 | . 53 31 124 . 26 Received Heat Transfer 894 | . . 426 198 . 270 Effects 5 | . . . 5 . . Shutdowns 1 | . . . 1 . . Energy Bleed 2 | . . . 2 . . Interference 2 | . . . 2 . . Siege Activations . | . . . . . . Robots Corrupted . | . . . . . . Combat Hostiles . | . . . . . . Parts Fried . | . . . . . . Impact Corruptions . | . . . . . . Robots Melted . | . . . . . . Combat Hostiles . | . . . . . . Parts Melted 2 | . . 1 1 . . Heat Transferred 1887 | . 296 296 1036 . 259 Parts Sabotaged . | . . . . . . Parts Stolen . | . . . . . . Parts Stripped . | . . . . . . Power Chain Reactions . | . . . . . . Missiles Intercepted . | . . . . . . Alert | -11 -10 -9 -8 -7 -7 ------- Run | Scr Mat Mat Mat Fac Low Peak Influence 319 | . 159 319 287 171 . Initial 111 | . . 57 28 111 . Average 99 | . 66 102 117 152 . Maximum Alert Level 1 | . . 1 1 . . Low Security (%) 88 | 100 100 83 85 100 . Level 1 11 | . . 16 14 . . Level 2 . | . . . . . . Level 3 . | . . . . . . Level 4 . | . . . . . . Level 5 . | . . . . . . High Security . | . . . . . . Max Security . | . . . . . . Squads Dispatched 8 | . . 3 2 3 . Investigation 2 | . . . 1 1 . Extermination . | . . . . . . Reinforcement 6 | . . 3 1 2 . Assault . | . . . . . . Garrison . | . . . . . . Intercept . | . . . . . . Construction Impeded . | . . . . . . Haulers Reinforced . | . . . . . . Stealth | -11 -10 -9 -8 -7 -7 --------- Run | Scr Mat Mat Mat Fac Low Distress Signals 6 | . 1 2 3 . . Communications Jammed . | . . . . . . Distress Signals . | . . . . . . Times Spotted 112 | . 10 32 29 2 39 Peak Tracking Total 12 | . 4 9 6 2 12 Tactical Retreats 18 | . 2 2 3 . 11 Traps | -11 -10 -9 -8 -7 -7 ------- Run | Scr Mat Mat Mat Fac Low Traps Triggered 3 | . 1 1 1 . . Indirectly . | . . . . . . Trap Hack Attempts . | . . . . . . Triggered . | . . . . . . Disarmed . | . . . . . . Reprogrammed . | . . . . . . Reused . | . . . . . . Traps Extracted . | . . . . . . Installed . | . . . . . . Triggered . | . . . . . . Machines | -11 -10 -9 -8 -7 -7 ---------- Run | Scr Mat Mat Mat Fac Low Machines Disabled 4 | . . 1 . . 3 Max in Single Turn 1 | . . 1 . . 1 Machines Sabotaged . | . . . . . . Garrisons Compromised . | . . . . . . Overloaded Fab Kills . | . . . . . . Fab Network Shutdowns . | . . . . . . Hacking | -11 -10 -9 -8 -7 -7 --------- Run | Scr Mat Mat Mat Fac Low Machines Accessed 8 | . 1 2 3 1 1 Terminals 6 | . 1 2 2 . 1 Fabricators . | . . . . . . Repair Stations . | . . . . . . Recycling Units 1 | . . . . 1 . Scanalyzers . | . . . . . . Garrison Access 1 | . . . 1 . . Total Hacks 26 | . 4 7 10 1 4 Successful 16 | . 2 5 4 1 4 Failed 10 | . 2 2 6 . . Catastrophic . | . . . . . . Database Lockouts . | . . . . . . Manual 1 | . . . . 1 . Terminals 22 | . 4 7 7 . 4 Fabricators . | . . . . . . Repair Stations . | . . . . . . Recycling Units 1 | . . . . 1 . Scanalyzers . | . . . . . . Garrison Access 3 | . . . 3 . . Terminal Hacks 15 | . 2 5 4 . 4 Record 9 | . . 3 2 . 4 Prototype ID Bank 2 | . 1 1 . . . Alert Level 1 | . . . 1 . . Unreport Threat 1 | . . . 1 . . Locate Traps 2 | . 1 1 . . . Fabricator Hacks . | . . . . . . Repair Station Hacks . | . . . . . . Recycling Unit Hacks . | . . . . . . Scanalyzer . | . . . . . . Garrison Access Hacks . | . . . . . . Unauthorized Hacks 1 | . . . . 1 . Terminals . | . . . . . . Fabricators . | . . . . . . Repair Stations . | . . . . . . Recycling Units 1 | . . . . 1 . Tunnel 1 | . . . . 1 . Scanalyzers . | . . . . . . Garrison Access . | . . . . . . Data Cores Recovered . | . . . . . . Used . | . . . . . . Hacking Detections 6 | . 1 2 3 . . Full Trace Events . | . . . . . . Feedback Events . | . . . . . . Feedback Blocked . | . . . . . . Robot Schematics Acquired . | . . . . . . Robots Built . | . . . . . . Matter . | . . . . . . Time . | . . . . . . Total Robot Build Rating . | . . . . . . Part Schematics Acquired . | . . . . . . Parts Built . | . . . . . . Matter . | . . . . . . Time . | . . . . . . Total Part Build Rating . | . . . . . . Parts Repaired . | . . . . . . Time . | . . . . . . Parts Recycled . | . . . . . . Recycled Matter . | . . . . . . Retrieved Matter . | . . . . . . Retrieved Components . | . . . . . . Parts Scanalyzed . | . . . . . . Part Schematics Acquired . | . . . . . . Parts Damaged . | . . . . . . Bothacking | -11 -10 -9 -8 -7 -7 ------------ Run | Scr Mat Mat Mat Fac Low Used RIF Installer . | . . . . . . Robots Hacked . | . . . . . . Non-combat . | . . . . . . Combat . | . . . . . . Robot Hacks Applied . | . . . . . . Relay Couplers Released . | . . . . . . Robots Rewired . | . . . . . . Allies Hacked . | . . . . . . Hacks Repelled . | . . . . . . Allies | -11 -10 -9 -8 -7 -7 -------- Run | Scr Mat Mat Mat Fac Low Total Allies . | . . . . . . Largest Group . | . . . . . . Highest-Rated Group . | . . . . . . Highest-Rated Ally . | . . . . . . Total Orders . | . . . . . . Ally Attacks . | . . . . . . Total Damage . | . . . . . . Kills . | . . . . . . Allies Corrupted . | . . . . . . Allies Melted . | . . . . . . Intel | -11 -10 -9 -8 -7 -7 ------- Run | Scr Mat Mat Mat Fac Low Robot Analysis Total . | . . . . . . Derelict Logs Recovered 2 | . . . . . 2 Drone Launches . | . . . . . . Drone Recoveries . | . . . . . . Exploration | -11 -10 -9 -8 -7 -7 ------------- Run | Scr Mat Mat Mat Fac Low Turns Passed 2970 | 85 335 830 599 112 1009 Spaces Moved 1877 | 51 176 407 357 111 775 Core 431 | 10 . 1 . . 420 Treads 619 | 41 176 402 . . . Legs . | . . . . . . Wheels 827 | . . 4 357 111 355 Hover . | . . . . . . Flight . | . . . . . . Fastest Speed 50 | 50 160 100 100 100 50 Average Speed 129 | 138 160 160 109 100 118 Slowest Speed 400 | 160 160 400 110 100 300 Overloaded Moves . | . . . . . . Propulsion Burnouts . | . . . . . . Robots Hopped . | . . . . . . Cave-ins Triggered . | . . . . . . Exploration Rate (%) 29 | 4 39 34 32 4 63 Regions Visited 5 Branch Regions 1 Pre-discovered Areas 3 | . . . . 1 2 Known Exits Taken 3 | . . 1 1 1 . Unknown Exits Taken 2 | 1 1 . . . . Scrap Searched 2 | . . . . . 2 Spaces Dug 4 | . . . . . 4 Terrain Destroyed 82 | . . . 7 . 75 Melee . | . . . . . . Projectile . | . . . . . . AOE 82 | . . . 7 . 75 Terrain Rammed . | . . . . . . Walls Destroyed . | . . . . . . Machines Disabled . | . . . . . . Actions | -11 -10 -9 -8 -7 -7 --------- Run | Scr Mat Mat Mat Fac Low Total 2216 | 66 207 518 489 112 824 Wait 110 | . 15 27 68 . . Move 1872 | 50 175 406 356 110 775 Hop . | . . . . . . Pick Up 41 | 10 3 9 15 . 4 Fast Attach . | . . . . . . Attach 34 | 6 1 8 6 2 11 Detach 1 | . . . . . 1 Swap 18 | . . 6 11 . 1 Drop 10 | . . 6 . . 4 Fire 130 | . 13 56 33 . 28 Melee . | . . . . . . Ram . | . . . . . . Kick . | . . . . . . Crush . | . . . . . . Escape Stasis . | . . . . . . Rewire . | . . . . . . Trap . | . . . . . . Miscellaneous . | . . . . . . Route ------- -11/Scrapyard -10/Materials -9/Materials -8/Materials -7/Factory -7/Lower Caves (discovered 1 exit: [*Low]) History --------- Turn | Location | Event 9 | -11/Scrapyard | Discovered new exit (range 15) 86 | -11/Scrapyard | Entered Materials 302 | -10/Materials | Build established: Mutant 374 | -10/Materials | Discovered new exit (range 12) 421 | -10/Materials | Entered another Materials area 421 | -9/Materials | Evolved 2 slots: Utility x2 972 | -9/Materials | Build established: Scavenger-Skirmisher 1106 | -9/Materials | Lost 3 parts (1u2w) 1240 | -9/Materials | Discovered new exit (range 7) 1250 | -9/Materials | Identified exit to Materials 1251 | -9/Materials | Entered another Materials area 1251 | -8/Materials | Evolved 2 slots: Power x1, Weapon x1 1272 | -8/Materials | Lost 5 parts (1p2n1u1w) 1584 | -8/Materials | Build established: Skirmisher 1831 | -8/Materials | Discovered new exit (range 14) 1849 | -8/Materials | Identified exit to Factory 1850 | -8/Materials | Entered Factory 1850 | -7/Factory | Evolved 2 slots: Propulsion x1, Utility x1 1936 | -7/Factory | Discovered new exit (range 19) 1961 | -7/Factory | Identified exit to Lower Caves 1962 | -7/Factory | Entered Lower Caves 1966 | -7/Lower Caves | Encountered a Warlord checkpoint 2176 | -7/Lower Caves | Destroyed 10 combat bots 2183 | -7/Lower Caves | Lost 6 parts (2p1n1u2w) 2184 | -7/Lower Caves | Learned location of Armory (-3) 2229 | -7/Lower Caves | Attracted the attention of an 0b10 base 2284 | -7/Lower Caves | Lost 3 parts (1p1n1w) 2399 | -7/Lower Caves | Attracted the attention of an 0b10 checkpoint 2410 | -7/Lower Caves | Spotted B-75 Beast 2451 | -7/Lower Caves | Core integrity fell below 50% 2458 | -7/Lower Caves | Lost 7 parts (1p1n1u4w) 2545 | -7/Lower Caves | Core integrity fell below 20% 2720 | -7/Lower Caves | Build established: Mutant 2843 | -7/Lower Caves | Learned location of 1 exit from Factory 2849 | -7/Lower Caves | Learned location of 1 exit from Factory 2967 | -7/Lower Caves | Discovered new exit (range 14) 2971 | -7/Lower Caves | Destroyed by S-27 Virus with Autogun Last Messages --------------- 02576_ Storage Shell breached. 02584_ Acquired 75 matter. 02818_ Dropped Lrg. Storage Unit. 02829_ Searching scrap... 02829_ Found Imp. Targeting Computer. 02829_ Found Weight Redist. System. 02829_ Found 13 Matter. 02830_ Acquired 13 matter. 02830_ Acquired Weight Redist. System. 02833_ Acquired Imp. Targeting Computer. 02838_ Discarded Imp. Targeting Computer. 02842_ Dropped Weight Redist. System. 02843_ Acquired derelict log, extracted data. Data stored: Factory exits (x1). 02849_ Acquired derelict log, extracted data. Data stored: Factory exits (x1). 02957_ Acquired 1 matter. 02958_ Acquired 10 matter. 02959_ Acquired 37 matter. 02967_ EXIT=FOUND Map ----- +----------------------------------------------------+ | ?????????????????????????????????????????????????? | | ?????????????????????????????????????????????????? | | ?????????????????????????????????????????????????? | | ?????????????????????????????????????????????????? | | ?????????????????????????????????????????????????? | | ?????????????????????????????????????????????????? | | ?????????????????????????????????????????????????? | | ?????????????????????????????????????????????????? | | ?????????????????????????????????????????????????? | | ?????????????????????????????????????????????????? | | ?????????????????????????????????????????????????? | | ?????????????????????????????????????????????????? | | ?????????????????????????????????????????????????? | | ????????????????????? #??????????????????????????? | | ?????????????????###?? #?????????????????????????# | | ?????????????????# ? #????#????????????????? ## | | ?????????????????? ? ##??# ???????????????? | | ??????????????????? ?? < #??# ??????????????? | | ???????????????????# ? # #??? #?????????????? | | ???????????????????# ?# #???? ##????????????? | | ??????????????????## ## #????? #???????????? | | ??????????????????# # #?????? ###????????? | | ??????? ???????# ##?????? #?????????? | | ?????? ##### ##?????# ???#####??? | | ?????????# $ #?????# ??## ##?## | | ??????????# s @ #??????# #### ### | | ???????????# ##### #??##### ## | | ????????????????????## #### ## #? | | ????????????????????## ss## ### | | ??????????????????### s ## | | ??????????????????# ### #"" | | ??????????????????# ## ### | | ??????????????????## ##########?## ### | | ???????????????????#####????????????# #?## | | ????????????????????????????????????## # #??# | | ?????????????????????????????????????### ######??# | | ???????????????????????????????????????###???????? | | ?????????????????????????????????????????????????? | | ?????????????????????????????????????????????????? | | ?????????????????????????????????????????????????? | | ?????????????????????????????????????????????????? | | ?????????????????????????????????????????????????? | | ?????????????????????????????????????????????????? | | ?????????????????????????????????????????????????? | | ?????????????????????????????????????????????????? | | ?????????????????????????????????????????????????? | | ?????????????????????????????????????????????????? | | ?????????????????????????????????????????????????? | | ?????????????????????????????????????????????????? | | ?????????????????????????????????????????????????? | +----------------------------------------------------+ Best States ------------- Heat Dissipation 48 Energy Generation 23 Energy Capacity 305 Matter Stores 300 Matter Capacity 300 Sight Range 20 Robot Scan Range 13 Terrain Scan Density 10 ECM Strength 2 Additional Mass Support 6 Resistance: KI 20 Resistance: TH 20 Resistance: EX 20 Resistance: EM 20 Resistance: I 20 Resistance: S 20 Resistance: P 20 Evasion (%) 50 Recoil Reduction 2 Offensive Hacking 10 Item Schematics ----------------- None Robot Schematics ------------------ None Fabricated ------------ Nothing Alien Tech Used ----------------- None Achievements -------------- Brute Force I Spy Challenges ------------ None Game ------ Seed ImprinterWardroneMatter Manual? 0 Play Time 01:16:17 Cumulative 17.7 hours Start 2021.01.12 @ 12:17:18 End 2021.01.12 @ 16:36:34 Sessions 2 Manual Loads 0 Difficulty Adventurer Special Mode None Game No. 12 Rogue 8 Adventurer 4 Explorer 0 Win Type - Total 0 Types 0/0/0/0/0/0/0/0/0 Lore% 7 Gallery% 20 Achievement% 16 Wizard Run 0 Options --------- ASCII 0 Keyboard 0 Movement Numpad Keybinds 0 Fullscreen 0 Font 16/SmallcapsGlow Map View 76x50 Tactical HUD 1 Map Filters NONE Filters NONE Steam X RUN: 1ff6bcc0-cef9-433c-8ab3-8080831b3223